bitfinex-derivatives/quotes_SOLF0:USTF0_20250716
["timestamp","ask_amount","ask_price","bid_price","bid_amount"]
[1752651140615,6.0911,164.17,164.13,6.0923]
[1752651141014,4.24974044,164.18,164.09,4.24974044]
[1752651141315,4.24902657,164.16,164.08,4.24902657]
[1752651141506,4.24902657,164.16,164.12,6.0929]
[1752651141711,4.24902657,164.16,164.08,4.24902657]
[1752651142010,4.24902657,164.16,164.06,188.3702]
[1752651142211,6.0918,164.15,164.09,4.24902657]
[1752651142611,6.0918,164.15,164.12,6.0926]
[1752651143215,4.24902657,164.18,164.09,4.24902657]
[1752651143816,6.0911,164.17,164.14,6.0919]
[1752651145414,202.68898857,164.24,164.11,4.24784684]
[1752651145621,4.24784684,164.21,164.13,4.24784684]
[1752651145920,6.0905,164.19,164.16,6.0912]
[1752651147813,6.0901,164.2,164.17,6.091]
[1752651149317,6.0905,164.19,164.16,6.0913]
[1752651150824,6.0897,164.21,164.18,6.0907]
[1752651151025,4.24694443,164.23,164.15,4.24694443]
[1752651151323,526.66,164.25,164.19,6.0901]
[1752651151324,6.0895,164.22,164.19,6.0901]
[1752651151621,6.0895,164.22,164.15,4.24694443]
[1752651152124,6.0895,164.22,164.19,6.0901]
[1752651152924,6.0895,164.22,164.2,6.0899]
[1752651153426,6.089,164.23,164.2,6.0899]
[1752651153619,4.24694443,164.24,164.2,6.0899]
[1752651154426,4.24694443,164.24,164.19,6.0902]
[1752651155127,526.66,164.25,164.09,193.59448073]
[1752651155332,4.24694443,164.22,164.14,4.24694443]
[1752651155721,4.24694443,164.22,164.17,6.0908]
[1752651156720,4.24694443,164.22,164.09,193.65448073]
[1752651156924,4.24694443,164.22,164.13,4.24694443]
[1752651157125,6.09,164.2,164.17,6.0909]
[1752651159030,10.33664443,164.21,164.18,6.0906]
[1752651159525,6.0895,164.22,164.15,4.24694443]
[1752651160731,6.0895,164.22,164.19,6.0903]
[1752651161331,6.089,164.23,164.19,6.0903]
[1752651162530,10.24374173,164.27,164.18,4.24694443]
[1752651162833,4.24694443,164.26,164.18,4.24694443]
[1752651163134,6.0888,164.24,164.21,6.0894]
[1752651165136,6.0888,164.24,164.22,6.0892]
[1752651165638,6.0888,164.24,164.21,6.0896]
[1752651166633,6.0889,164.23,164.21,6.0896]
[1752651167932,6.0887,164.24,164.22,6.0892]
[1752651169539,6.0882,164.25,164.23,6.0889]
[1752651169736,176.5,164.29,164.18,4.24694443]
[1752651170038,6.0876,164.27,164.24,6.0882]
[1752651170534,6.0876,164.27,164.2,4.24694443]
[1752651170730,6.0876,164.27,164.24,6.0883]
[1752651172935,530.68694443,164.31,164.22,4.24694443]
[1752651173239,4.24694443,164.31,164.24,4.24694443]
[1752651173540,6.0865,164.3,164.24,4.24694443]
[1752651174039,6.0865,164.3,164.27,6.0873]
[1752651175141,6.0867,164.29,164.26,6.0876]
[1752651176739,6.0864,164.3,164.27,6.0871]
[1752651178947,526.3,164.39,164.26,4.24694443]
[1752651179154,526.3,164.39,164.28,4.24694443]
[1752651179450,4.24694443,164.36,164.32,6.0853]
[1752651179942,4.24694443,164.36,164.24,4.24694443]
[1752651179943,4.24694443,164.36,164.31,6.0857]
[1752651180443,4.24694443,164.36,164.28,4.24694443]
[1752651180644,4.24694443,164.36,164.29,4.24694443]
[1752651181042,10.33104443,164.36,164.31,6.0856]
[1752651181248,4.24694443,164.36,164.29,4.24694443]
[1752651181755,4.24694443,164.36,164.32,6.0853]
[1752651182151,4.24694443,164.36,164.29,4.24694443]
[1752651182350,526.3,164.39,164.29,4.24694443]
[1752651182351,4.24694443,164.38,164.29,4.24694443]
[1752651182550,4.24694443,164.38,164.24,4.24694443]
[1752651182751,4.24694443,164.38,164.3,4.24694443]
[1752651182951,4.24694443,164.38,164.33,6.0849]
[1752651183152,4.24694443,164.36,164.33,6.0849]
[1752651183754,10.33074443,164.37,164.33,6.0849]
[1752651184654,10.33074443,164.37,164.34,6.0848]
[1752651184958,6.0838,164.37,164.34,6.0848]
[1752651186357,10.33044443,164.38,164.35,6.0843]
[1752651186556,6.0835,164.38,164.35,6.0843]
[1752651186852,4.24694443,164.38,164.36,6.084]
[1752651187153,180.76694443,164.38,164.36,6.084]
[1752651187451,0.17985019,164.42,164.33,4.24694443]
[1752651187656,0.17985019,164.42,164.37,4.24694443]
[1752651187855,0.17985019,164.42,164.4,6.0823]
[1752651188048,0.17985019,164.42,164.37,4.24694443]
[1752651188657,0.17985019,164.42,164.35,4.24694443]
[1752651188857,4.42679462,164.42,164.35,4.24694443]
[1752651189458,0.17985019,164.42,164.35,4.24694443]
[1752651190063,0.17985019,164.42,164.38,6.0831]
[1752651190263,0.17985019,164.42,164.35,4.24694443]
[1752651190757,6.26165019,164.42,164.38,6.0831]
[1752651192456,6.26165019,164.42,164.35,4.24694443]
[1752651192864,6.26165019,164.42,164.38,6.0831]
[1752651193562,0.17985019,164.42,164.39,6.0827]
[1752651194565,6.26185019,164.42,164.39,6.0827]
[1752651194759,6.26185019,164.42,164.38,6.0831]
[1752651194956,0.17985019,164.42,164.38,6.0831]
[1752651195560,6.0823,164.41,164.38,6.0831]
[1752651195766,0.17985019,164.42,164.39,6.0829]
[1752651196064,6.26185019,164.42,164.39,6.0829]
[1752651196363,0.17985019,164.42,164.39,6.0829]
[1752651197264,0.17985019,164.42,164.35,4.24694443]
[1752651197466,0.17985019,164.42,164.32,4.24694443]
[1752651197662,6.26165019,164.42,164.32,4.24694443]
[1752651197963,6.26165019,164.42,164.38,6.0831]
[1752651198463,6.26165019,164.42,164.39,6.0829]
[1752651199965,6.0822,164.41,164.38,6.0832]
[1752651200166,0.17985019,164.42,164.38,6.0832]
[1752651200465,0.17985019,164.42,164.36,4.24694443]
[1752651201160,6.26185019,164.42,164.36,4.24694443]
[1752651201876,6.26185019,164.42,164.39,6.0828]
[1752651202767,6.0822,164.41,164.36,4.24694443]
[1752651203260,6.26195019,164.42,164.39,6.0827]
[1752651204573,0.17985019,164.42,164.4,6.0825]
[1752651204969,6.26185019,164.42,164.32,4.24694443]
[1752651205270,6.26185019,164.42,164.36,4.24694443]
[1752651205659,6.26185019,164.42,164.38,6.083]
[1752651206064,0.17985019,164.42,164.37,6.0835]
[1752651207169,4.42679462,164.42,164.37,6.0835]
[1752651207367,4.42679462,164.42,164.27,526.08]
[1752651207368,4.24694443,164.4,164.31,4.24694443]
[1752651207760,6.0835,164.38,164.31,4.24694443]
[1752651208965,10.32994443,164.39,164.35,6.0841]
[1752651209368,6.083,164.39,164.35,6.0841]
[1752651209966,10.32964443,164.4,164.33,4.24694443]
[1752651210571,6.083,164.39,164.36,6.0838]
[1752651211776,6.0833,164.38,164.35,6.0843]
[1752651213877,0.17985019,164.42,164.35,4.24694443]
[1752651214073,0.17985019,164.42,164.37,4.24694443]
[1752651214873,0.17985019,164.42,164.41,6.0822]
[1752651216288,0.17985019,164.42,164.4,6.0824]
[1752651219682,0.17985019,164.42,164.41,6.0822]
[1752651221581,0.17985019,164.42,164.4,6.0824]
[1752651224880,6.26165019,164.42,164.39,6.0827]
[1752651225374,0.17985019,164.42,164.37,4.24694443]
[1752651225782,0.17985019,164.42,164.4,6.0823]
[1752651225983,0.17985019,164.42,164.38,4.24694443]
[1752651226684,0.17985019,164.42,164.4,6.0822]
[1752651227380,0.17985019,164.42,164.38,4.24694443]
[1752651228484,0.17985019,164.42,164.39,6.0829]
[1752651228786,0.17985019,164.42,164.4,6.0825]
[1752651231488,6.26185019,164.42,164.39,6.0826]
[1752651231797,6.26185019,164.42,164.37,4.24694443]
[1752651232686,0.17985019,164.42,164.4,6.0823]
[1752651233587,6.26165019,164.42,164.4,6.0823]
[1752651234588,0.17985019,164.42,164.4,6.0823]
[1752651234791,0.17985019,164.42,164.41,6.0822]
[1752651235683,0.17985019,164.42,164.4,6.0824]
[1752651237593,6.26175019,164.42,164.4,6.0824]
[1752651238294,6.26175019,164.42,164.32,9.28941992]
[1752651238295,0.17985019,164.42,164.32,9.28941992]
[1752651238492,0.17985019,164.42,164.38,4.24694443]
[1752651238889,6.26185019,164.42,164.4,6.0824]
[1752651241194,0.17985019,164.42,164.41,6.0822]
[1752651241593,0.17985019,164.42,164.4,2.70982942]
[1752651241794,0.17985019,164.42,164.4,8.79222942]
[1752651241994,0.17985019,164.42,164.4,2.70982942]
[1752651242794,0.17985019,164.42,164.41,6.0822]
[1752651245094,0.17985019,164.42,164.4,8.79222942]
[1752651245497,0.17985019,164.42,164.4,6.0824]
[1752651245693,6.26165019,164.42,164.4,6.0824]
[1752651248311,0.17985019,164.42,164.4,6.0824]
[1752651248898,6.26185019,164.42,164.4,6.0824]
[1752651249193,6.26185019,164.42,164.35,2.70982942]
[1752651249194,2.70982942,164.41,164.35,2.70982942]
[1752651249399,8.79282942,164.39,164.35,2.70982942]
[1752651249696,2.70982942,164.39,164.36,6.0838]
[1752651249899,8.79292942,164.39,164.36,6.0838]
[1752651250298,8.79292942,164.39,164.37,6.0836]
[1752651250690,2.70982942,164.38,164.37,6.0836]
[1752651251698,8.79292942,164.39,164.37,6.0836]
[1752651253503,6.0831,164.39,164.37,6.0836]
[1752651253697,8.79292942,164.39,164.37,6.0836]
[1752651254298,8.79292942,164.39,164.36,6.0839]
[1752651254602,2.70982942,164.37,164.33,2.70982942]
[1752651254902,2.70982942,164.38,164.37,6.0837]
[1752651255103,2.70982942,164.39,164.37,6.0837]
[1752651255804,8.79292942,164.39,164.37,6.0837]
[1752651256618,2.70982942,164.38,164.36,0.04121442]
[1752651256803,0.17985019,164.42,164.36,0.04121442]
[1752651256804,2.70982942,164.37,164.36,0.04121442]
[1752651257103,2.70982942,164.38,164.33,2.70982942]
[1752651257303,8.79342942,164.38,164.34,2.70982942]
[1752651257500,2.70982942,164.38,164.34,2.70982942]
[1752651257700,6.0839,164.37,164.33,2.70982942]
[1752651258003,2.70982942,164.39,164.34,2.70982942]
[1752651258405,6.0834,164.38,164.35,6.084]
[1752651259001,8.79322942,164.38,164.34,2.70982942]
[1752651259495,0.17985019,164.42,164.29,525.7]
[1752651259496,6.0827,164.4,164.29,525.7]
[1752651259701,2.70982942,164.41,164.37,2.70982942]
[1752651259900,2.88967961,164.42,164.37,2.70982942]
[1752651260102,6.0824,164.41,164.38,6.0831]
[1752651260306,6.0824,164.41,164.37,2.70982942]
[1752651260605,6.0824,164.41,164.38,6.083]
[1752651261194,2.70982942,164.41,164.37,2.70982942]
[1752651261600,0.17985019,164.42,164.37,2.70982942]
[1752651261801,8.79222942,164.41,164.38,6.0833]
[1752651262001,2.70982942,164.41,164.37,2.70982942]
[1752651262411,2.70982942,164.4,164.29,530.74247549]
[1752651262705,2.70982942,164.4,164.3,4.75612582]
[1752651262907,2.70982942,164.4,164.36,2.70982942]
[1752651263205,6.0829,164.39,164.36,8.79362942]
[1752651263604,6.0829,164.39,164.36,6.0838]
[1752651263796,6.0829,164.39,164.36,8.79362942]
[1752651264511,6.0827,164.4,164.37,8.79352942]
[1752651264897,6.0827,164.4,164.37,6.0837]
[1752651266306,6.0823,164.41,164.38,6.0832]
[1752651268307,0.17985019,164.42,164.38,6.0832]
[1752651268809,6.0824,164.41,164.36,4.23578991]
[1752651269310,6.0824,164.41,164.38,6.083]
[1752651273515,6.0824,164.41,164.36,4.23578991]
[1752651274316,6.0824,164.41,164.38,6.0831]
[1752651274714,6.0828,164.4,164.38,6.0831]
[1752651275516,4.4156401,164.42,164.37,6.0836]
[1752651276118,6.0827,164.4,164.38,6.0833]
[1752651276418,0.17985019,164.42,164.38,6.0833]
[1752651276716,6.0823,164.41,164.39,6.0829]
[1752651278417,6.26185019,164.42,164.39,6.0829]
[1752651279518,6.0822,164.41,164.39,6.0829]
[1752651281119,6.26185019,164.42,164.39,6.0829]
[1752651282309,6.26185019,164.42,164.4,6.0825]
[1752651283609,6.26185019,164.42,164.39,6.0827]
[1752651283809,6.0825,164.41,164.34,4.23578991]
[1752651284010,6.0825,164.41,164.38,6.083]
[1752651284922,6.0825,164.41,164.39,6.0829]
[1752651285717,6.0825,164.41,164.38,6.0831]
[1752651286027,6.0825,164.41,164.34,4.23578991]
[1752651286416,6.0825,164.41,164.38,6.0831]
[1752651286920,2.71089008,164.41,164.36,2.71089008]
[1752651287121,2.71089008,164.38,164.34,2.71089008]
[1752651287323,2.71089008,164.37,164.33,2.71089008]
[1752651287621,2.71089008,164.38,164.35,6.0841]
[1752651287920,2.71089008,164.37,164.34,2.71089008]
[1752651288124,2.71089008,164.36,164.29,525.7]
[1752651288321,2.71089008,164.35,164.32,2.71089008]
[1752651288519,2.71089008,164.35,164.31,2.71089008]
[1752651288819,8.79549008,164.35,164.32,6.0852]
[1752651289220,2.71089008,164.34,164.32,6.0852]
[1752651289624,2.71089008,164.34,164.33,6.0851]
[1752651289823,2.71089008,164.35,164.33,6.0851]
[1752651293225,2.71089008,164.35,164.34,6.0848]
[1752651295923,2.71089008,164.36,164.35,6.0843]
[1752651296318,2.71089008,164.37,164.35,6.0843]
[1752651296717,2.71089008,164.37,164.33,2.71089008]
[1752651296718,2.71089008,164.37,164.36,6.084]
[1752651298427,2.71089008,164.38,164.36,6.084]
[1752651298824,2.71089008,164.38,164.34,2.71089008]
[1752651299130,8.79419008,164.38,164.34,2.71089008]
[1752651299325,8.79419008,164.38,164.35,6.0842]
[1752651299531,2.71089008,164.37,164.35,6.0842]
[1752651299929,2.71089008,164.37,164.36,6.084]
[1752651300130,2.71089008,164.38,164.36,6.084]
[1752651300932,8.79429008,164.38,164.36,6.084]
[1752651301631,6.083,164.39,164.36,6.084]
[1752651301931,2.71089008,164.38,164.37,6.0837]
[1752651302135,2.71089008,164.38,164.34,2.71089008]
[1752651302434,2.71089008,164.38,164.36,6.0839]
[1752651302830,8.79419008,164.38,164.36,6.0839]
[1752651303527,2.71089008,164.37,164.36,6.0839]
[1752651304034,2.71089008,164.38,164.37,6.0837]
[1752651305030,6.0831,164.39,164.27,12.1743]
[1752651305031,2.71089008,164.39,164.38,6.0833]
[1752651305333,2.71089008,164.4,164.36,2.71089008]
[1752651306036,8.79329008,164.41,164.39,6.0829]
[1752651306339,2.71089008,164.41,164.39,6.0829]
[1752651306633,2.89074027,164.42,164.4,6.0825]
[1752651306834,2.89074027,164.42,164.37,2.71089008]
[1752651307236,8.97274027,164.42,164.39,6.0827]
[1752651307434,2.71089008,164.41,164.39,6.0827]
[1752651308239,2.71089008,164.41,164.4,6.0826]
[1752651309738,0.17985019,164.42,164.37,2.71089008]
[1752651309936,2.89074027,164.42,164.38,2.71089008]
[1752651310337,2.89074027,164.42,164.4,6.0824]
[1752651311235,2.71089008,164.41,164.4,6.0824]
[1752651311838,2.89074027,164.42,164.4,6.0824]
[1752651312035,2.89074027,164.42,164.41,6.0822]
[1752651313435,0.17985019,164.42,164.41,6.0822]
[1752651328057,2.71089008,164.45,164.43,6.0813]
[1752651328248,2.71089008,164.45,164.41,2.71089008]
[1752651328446,2.71089008,164.45,164.44,6.0811]
[1752651330149,6.0804,164.46,164.44,6.0811]
[1752651330450,2.71089008,164.45,164.44,6.0811]
[1752651331249,2.71089008,164.45,164.41,2.71089008]
[1752651331250,2.71089008,164.45,164.43,6.0813]
[1752651332346,6.0804,164.46,164.43,6.0813]
[1752651332551,2.71089008,164.45,164.43,6.0813]
[1752651332847,2.71089008,164.45,164.41,2.71089008]
[1752651333546,6.0804,164.46,164.43,6.0812]
[1752651333753,8.79169008,164.45,164.43,6.0812]
[1752651333950,176.06,164.49,164.43,6.0812]
[1752651334152,6.0805,164.46,164.43,6.0812]
[1752651334351,2.71089008,164.44,164.43,6.0812]
[1752651335148,6.0805,164.46,164.41,2.71089008]
[1752651335348,2.71089008,164.45,164.35,12.1684]
[1752651335554,2.71089008,164.44,164.41,2.71089008]
[1752651336654,2.71089008,164.44,164.43,6.0812]
[1752651337953,2.71089008,164.44,164.42,6.0817]
[1752651338556,2.71089008,164.44,164.43,6.0814]
[1752651339053,2.71089008,164.44,164.42,6.0816]
[1752651339251,2.71089008,164.44,164.39,2.71089008]
[1752651339252,2.71089008,164.43,164.39,2.71089008]
[1752651339559,2.71089008,164.43,164.42,6.0818]
[1752651339755,2.71089008,164.43,164.38,2.71089008]
[1752651339953,2.71089008,164.42,164.38,2.71089008]
[1752651340256,2.71089008,164.43,164.41,6.0822]
[1752651340951,2.71089008,164.43,164.4,6.0824]
[1752651343158,6.0813,164.44,164.4,6.0824]
[1752651343360,2.71089008,164.43,164.41,6.0822]
[1752651344059,2.71089008,164.42,164.4,6.0824]
[1752651345860,176.46,164.47,164.4,2.71089008]
[1752651346160,2.71089008,164.44,164.4,2.71089008]
[1752651346660,2.71089008,164.44,164.39,2.71089008]
[1752651346859,2.71089008,164.43,164.39,2.71089008]
[1752651347263,2.71089008,164.43,164.41,6.0819]
[1752651347562,6.0804,164.46,164.41,6.0819]
[1752651347762,2.71089008,164.44,164.41,6.0819]
[1752651348261,2.71089008,164.45,164.42,6.0817]
[1752651348461,182.5401,164.47,164.42,6.0817]
[1752651348864,10.24374173,164.5,164.34,5.0769818]
[1752651349161,10.24374173,164.5,164.35,9.81680239]
[1752651349364,525.74,164.52,164.43,6.0814]
[1752651349365,6.0795,164.49,164.43,6.0814]
[1752651349562,6.0795,164.49,164.43,8.79229008]
[1752651349756,2.71089008,164.47,164.43,6.0814]
[1752651349963,2.71089008,164.47,164.44,6.0811]
[1752651350165,16.32274173,164.5,164.35,5.0769818]
[1752651350468,10.24374173,164.5,164.43,8.79219008]
[1752651350656,10.24374173,164.5,164.43,6.0813]
[1752651350854,6.0794,164.49,164.44,2.71089008]
[1752651351055,2.71089008,164.47,164.44,2.71089008]
[1752651351260,2.71089008,164.47,164.35,5.0769818]
[1752651351461,2.71089008,164.46,164.42,2.71089008]
[1752651351962,6.08,164.47,164.35,5.0769818]
[1752651352258,10.24374173,164.5,164.42,2.71089008]
[1752651352462,2.71089008,164.46,164.43,6.0814]
[1752651352664,2.71089008,164.45,164.42,2.71089008]
[1752651353165,2.71089008,164.45,164.35,5.0769818]
[1752651353361,2.71089008,164.45,164.41,2.71089008]
[1752651353562,6.0799,164.48,164.41,2.71089008]
[1752651353864,2.71089008,164.45,164.41,2.71089008]
[1752651354065,2.71089008,164.45,164.42,6.0815]
[1752651354763,2.71089008,164.45,164.42,8.79239008]
[1752651355076,2.71089008,164.45,164.42,6.0815]
[1752651355670,2.71089008,164.45,164.41,2.71089008]
[1752651356570,2.71089008,164.45,164.35,5.0769818]
[1752651356868,2.71089008,164.47,164.44,2.71089008]
[1752651357167,2.71089008,164.48,164.44,8.79169008]
[1752651357358,2.71089008,164.47,164.44,6.0808]
[1752651358167,2.71089008,164.47,164.45,6.0807]
[1752651360572,2.71089008,164.47,164.44,6.081]
[1752651361667,2.71089008,164.46,164.44,6.081]
[1752651362172,10.24374173,164.51,164.44,6.081]
[1752651362374,2.71089008,164.46,164.44,6.081]
[1752651363074,2.71089008,164.45,164.41,2.71089008]
[1752651363975,2.71089008,164.45,164.36,5.0769818]
[1752651364289,718.84374173,164.52,164.42,6.0816]
[1752651364290,6.0806,164.46,164.42,6.0816]
[1752651364476,6.0806,164.46,164.37,4.74160465]
[1752651364477,2.71089008,164.45,164.4,2.71089008]
[1752651364679,2.71089008,164.44,164.41,6.0819]
[1752651365179,2.71089008,164.44,164.42,6.0818]
[1752651366281,2.71089008,164.44,164.41,6.0821]
[1752651366481,2.71089008,164.42,164.38,2.71089008]
[1752651366772,2.71089008,164.43,164.39,2.71089008]
[1752651366980,2.71089008,164.43,164.4,6.0822]
[1752651367976,2.71089008,164.43,164.41,6.0822]
[1752651368579,6.0808,164.45,164.41,6.0822]
[1752651368882,2.71089008,164.44,164.41,6.0822]
[1752651369582,2.71089008,164.43,164.41,6.0822]
[1752651371187,2.71089008,164.44,164.41,6.0822]
[1752651371581,6.0808,164.45,164.41,6.0822]
[1752651371777,2.71089008,164.44,164.41,6.0822]
[1752651372588,2.71089008,164.44,164.41,6.0821]
[1752651372792,193.68234516,164.49,164.41,2.71089008]
[1752651373089,8.79099008,164.47,164.42,2.71089008]
[1752651373989,8.79099008,164.47,164.43,6.0812]
[1752651374190,6.0801,164.47,164.43,8.79209008]
[1752651374382,8.79099008,164.47,164.43,8.79209008]
[1752651374893,8.79099008,164.47,164.43,6.0812]
[1752651375790,6.0804,164.46,164.43,6.0812]
[1752651375987,2.71089008,164.46,164.43,6.0812]
[1752651376390,6.0802,164.47,164.43,6.0812]
[1752651376703,2.71089008,164.46,164.42,6.0816]
[1752651376886,193.68221637,164.51,164.42,8.79249008]
[1752651377091,2.71089008,164.46,164.42,8.79249008]
[1752651377991,8.79129008,164.46,164.42,8.79249008]
[1752651379091,8.79129008,164.46,164.43,6.0813]
[1752651379393,2.71089008,164.46,164.42,2.71089008]
[1752651379893,2.71089008,164.46,164.43,6.0812]
[1752651380898,8.79099008,164.47,164.44,6.0811]
[1752651381294,8.79099008,164.47,164.42,2.71089008]
[1752651381494,8.79099008,164.47,164.43,6.0813]
[1752651382996,6.0801,164.47,164.43,6.0813]
[1752651383192,8.79099008,164.47,164.44,6.0811]
[1752651384497,8.79099008,164.47,164.43,6.0813]
[1752651384699,8.79129008,164.46,164.43,6.0813]
[1752651385595,6.0808,164.45,164.42,2.71089008]
[1752651385791,6.0808,164.45,164.36,5.08006109]
[1752651385997,6.0808,164.45,164.42,8.79239008]
[1752651386195,8.79139008,164.46,164.42,2.71089008]
[1752651386900,2.71089008,164.46,164.42,2.71089008]
[1752651387399,8.79129008,164.46,164.43,6.0812]
[1752651389291,2.71089008,164.46,164.43,6.0812]
[1752651390600,2.71089008,164.46,164.44,6.081]
[1752651392099,8.79099008,164.47,164.44,6.081]
[1752651392599,8.79099008,164.47,164.43,6.0813]
[1752651393495,8.79099008,164.47,164.44,6.081]
[1752651394506,2.71089008,164.47,164.44,6.081]
[1752651394698,2.71089008,164.47,164.45,6.0806]
[1752651395502,2.71089008,164.47,164.44,6.0809]
[1752651396104,8.79089008,164.47,164.44,6.0809]
[1752651397600,2.71089008,164.46,164.44,6.0809]
[1752651399004,2.71089008,164.47,164.44,6.081]
[1752651400103,2.71089008,164.46,164.44,6.081]
[1752651402006,8.79139008,164.46,164.43,6.0814]
[1752651402510,2.71089008,164.45,164.41,2.71089008]
[1752651402708,8.79159008,164.45,164.42,6.0815]
[1752651403009,2.71089008,164.45,164.4,2.71089008]
[1752651403307,2.71089008,164.45,164.43,6.0812]
[1752651403504,2.71089008,164.45,164.4,2.71089008]
[1752651403707,2.71089008,164.45,164.36,5.08006109]
[1752651403910,2.71089008,164.45,164.42,6.0816]
[1752651404405,2.71089008,164.45,164.41,2.71089008]
[1752651404606,8.79159008,164.45,164.42,6.0817]
[1752651404808,8.79159008,164.45,164.41,2.71089008]
[1752651405504,8.79209008,164.44,164.4,2.71089008]
[1752651406011,8.79209008,164.44,164.41,6.082]
[1752651407413,8.79239008,164.43,164.41,6.082]
[1752651407822,6.0815,164.43,164.41,6.082]
[1752651408010,8.79239008,164.43,164.41,6.082]
[1752651408713,2.71089008,164.43,164.41,6.082]
[1752651409213,2.71089008,164.43,164.42,6.0818]
[1752651410012,6.0812,164.44,164.42,6.0818]
[1752651410013,6.0809,164.45,164.42,6.0818]
[1752651410311,181.18,164.5,164.43,6.0812]
[1752651410612,2.71089008,164.45,164.43,6.0812]
[1752651411205,8.79159008,164.45,164.41,6.0819]
[1752651412111,8.79159008,164.45,164.42,6.0817]
[1752651412312,2.71089008,164.44,164.42,6.0817]
[1752651413416,2.71089008,164.44,164.4,2.71089008]
[1752651413910,2.71089008,164.44,164.42,6.0816]
[1752651414114,2.71089008,164.45,164.42,6.0816]
[1752651415317,2.71089008,164.45,164.41,2.71089008]
[1752651415718,8.79099008,164.47,164.42,2.71089008]
[1752651416515,2.71089008,164.46,164.43,6.0814]
[1752651417920,8.79129008,164.46,164.42,6.0817]
[1752651418216,6.0804,164.46,164.42,6.0817]
[1752651418418,8.79129008,164.46,164.42,6.0817]
[1752651418617,8.79129008,164.46,164.42,8.79259008]
[1752651418917,8.79129008,164.46,164.42,6.0817]
[1752651419817,8.79129008,164.46,164.42,8.79259008]
[1752651420410,8.79159008,164.45,164.42,6.0817]
[1752651420717,8.79159008,164.45,164.41,8.79289008]
[1752651421619,6.0807,164.45,164.41,8.79289008]
[1752651421919,8.79159008,164.45,164.41,8.79289008]
[1752651422220,8.79159008,164.45,164.42,6.0818]
[1752651428929,8.79159008,164.45,164.41,2.71089008]
[1752651429929,6.0807,164.45,164.42,2.71089008]
[1752651430126,6.0805,164.46,164.42,2.71089008]
[1752651430324,2.71089008,164.48,164.42,2.71089008]
[1752651430526,6.0804,164.46,164.42,8.79249008]
[1752651430726,6.0804,164.46,164.44,2.71089008]
[1752651432031,6.0808,164.45,164.43,2.71089008]
[1752651432331,1.05847464,164.51,164.43,2.71089008]
[1752651432534,2.71089008,164.47,164.43,2.71089008]
[1752651432822,6.0806,164.46,164.43,2.71089008]
[1752651433128,2.71089008,164.47,164.43,2.71089008]
[1752651433331,2.71089008,164.46,164.42,2.71089008]
[1752651433528,2.71089008,164.46,164.41,2.71089008]
[1752651434237,6.0812,164.44,164.41,8.79299008]
[1752651434829,6.0812,164.44,164.42,2.71089008]
[1752651435132,6.0809,164.45,164.42,8.79269008]
[1752651435733,6.0809,164.45,164.42,2.71089008]
[1752651436033,2.71089008,164.46,164.42,2.71089008]
[1752651437631,6.0811,164.45,164.42,2.71089008]
[1752651437929,2.71089008,164.45,164.36,5.08598847]
[1752651438135,13.21597464,164.51,164.4,2.71089008]
[1752651438136,2.71089008,164.44,164.4,2.71089008]
[1752651438335,6.0817,164.43,164.4,2.71089008]
[1752651438527,6.0817,164.43,164.36,5.08598847]
[1752651438730,6.0817,164.43,164.4,2.71089008]
[1752651439833,6.0817,164.43,164.4,6.0825]
[1752651440035,6.0817,164.43,164.4,8.79339008]
[1752651441035,2.71089008,164.43,164.38,2.71089008]
[1752651441636,8.79309008,164.42,164.38,8.79399008]
[1752651442037,6.0822,164.42,164.38,8.79399008]
[1752651442239,8.79309008,164.42,164.39,6.0829]
[1752651442442,6.0822,164.42,164.39,6.0829]
[1752651442733,8.79309008,164.42,164.39,6.0829]
[1752651444146,2.71089008,164.42,164.39,6.0829]
[1752651444542,2.71089008,164.41,164.38,6.0831]
[1752651444739,8.79309008,164.41,164.38,6.0831]
[1752651445348,8.79309008,164.41,164.39,6.0828]
[1752651445648,8.79309008,164.41,164.38,6.0831]
[1752651445844,2.71089008,164.39,164.35,2.71089008]
[1752651446149,2.71089008,164.37,164.32,528.31089008]
[1752651446346,2.71089008,164.37,164.35,6.0842]
[1752651447349,2.71089008,164.37,164.36,6.084]
[1752651447851,2.71089008,164.37,164.32,525.6]
[1752651448148,2.71089008,164.37,164.33,4.7828853]
[1752651448348,2.71089008,164.37,164.32,2.71089008]
[1752651448746,2.71089008,164.37,164.33,2.71089008]
[1752651449348,2.71089008,164.37,164.36,6.084]